bitfinex/quotes_SOLUSD_20250622
["timestamp","ask_amount","ask_price","bid_price","bid_amount"]
[1750587313575,18.64964886,133.1,133.05,7.51597143]
[1750587314060,7.36,133.09,133.05,7.51597143]
[1750587314258,18.64964886,133.07,133.01,7.51823171]
[1750587314840,26.16460304,133.07,133.01,7.51823171]
[1750587315038,18.64964886,133.07,133.01,7.51823171]
[1750587315238,18.64964886,133.03,133.01,7.51823171]
[1750587315968,31.96,133.04,133.01,7.51823171]
[1750587316371,31.96,133.04,133.01,26.31381098]
[1750587316551,31.96,133.04,132.97,45.12296006]
[1750587316750,31.96,133.04,132.97,63.92419342]
[1750587316951,18.64964886,133.03,132.97,26.3217267]
[1750587319146,26.00964886,133.03,132.97,26.3217267]
[1750587320048,198.90964886,133.03,132.97,7.52049334]
[1750587320253,18.64964886,132.99,132.96,7.52088462]
[1750587320465,18.64964886,132.99,132.94,18.8044273]
[1750587321175,18.64964886,132.99,132.93,7.52275633]
[1750587321876,18.64964886,132.95,132.93,7.52275633]
[1750587322484,18.64964886,132.95,132.89,26.33757242]
[1750587323061,65.32,132.96,132.89,63.96267588]
[1750587323255,39.32,132.96,132.89,63.96267588]
[1750587324980,146.9,132.98,132.89,101.58777934]
[1750587325146,39.28,133.01,132.92,26.0]
[1750587325349,39.28,133.01,132.93,26.0]
[1750587325561,18.64964886,133.0,132.93,26.0]
[1750587325762,39.28,133.01,132.94,6.1575]
[1750587326354,18.64964886,133.0,132.94,6.1575]
[1750587326553,18.64964886,133.0,132.95,7.52162467]
[1750587327061,18.64964886,132.98,132.95,7.52162467]
[1750587327461,50.60964886,132.98,132.95,7.52162467]
[1750587328875,50.60964886,132.98,132.93,26.32957363]
[1750587329472,50.60964886,132.98,132.93,7.52275633]
[1750587330871,50.60964886,132.98,132.9,63.95786304]
[1750587331053,18.64964886,132.98,132.9,63.95786304]
[1750587332074,18.64964886,132.96,132.9,63.95786304]
[1750587332286,18.64964886,132.96,132.9,26.33559066]
[1750587332678,18.64964886,132.94,132.9,26.33559066]
[1750587332883,18.64964886,132.94,132.89,7.52502069]
[1750587333174,18.64964886,132.92,132.89,7.52502069]
[1750587337295,18.64964886,132.9,132.86,7.52671985]
[1750587337475,18.64964886,132.9,132.86,26.34351948]
[1750587338459,18.64964886,132.9,132.86,7.52671985]
[1750587339702,146.9,132.91,132.86,26.34351948]
[1750587340184,9.17185638,132.94,132.87,6.5398]
[1750587340569,18.64964886,132.93,132.87,6.5398]
[1750587341170,18.64964886,132.93,132.88,7.52558699]
[1750587341997,52.17248411,132.93,132.88,7.52558699]
[1750587342601,18.64964886,132.89,132.85,7.52728641]
[1750587342886,146.9,132.92,132.85,26.34550244]
[1750587343202,44.64964886,132.93,132.85,26.34550244]
[1750587343706,18.64964886,132.92,132.85,26.34550244]
[1750587343868,18.64964886,132.92,132.85,63.9819345]
[1750587344069,18.64964886,132.92,132.85,26.34550244]
[1750587345599,18.64964886,132.9,132.85,26.34550244]
[1750587351095,18.64964886,132.9,132.85,7.52728641]
[1750587351598,18.64964886,132.86,132.82,7.52898659]
[1750587353208,18.64964886,132.86,132.8,20.40107226]
[1750587353209,18.64964886,132.86,132.81,26.35343723]
[1750587353999,31.96,132.87,132.81,26.35343723]
[1750587354704,18.64964886,132.86,132.81,7.52955349]
[1750587355076,18.64964886,132.86,132.81,26.35343723]
[1750587355681,52.17639922,132.86,132.81,7.52955349]
[1750587355894,26.0,132.86,132.81,26.35343723]
[1750587356284,18.64964886,132.87,132.81,26.35343723]
[1750587356590,27.87837182,132.88,132.81,26.35343723]
[1750587356801,18.64964886,132.87,132.81,26.35343723]
[1750587356987,28.49387448,132.87,132.81,26.35343723]
[1750587357800,28.49387448,132.87,132.81,64.00120471]
[1750587358708,9.84422562,132.87,132.81,64.00120471]
[1750587360014,9.84422562,132.87,132.82,6.061]
[1750587361084,9.84422562,132.87,132.83,27.6165]
[1750587361580,9.84422562,132.87,132.84,26.34748569]
[1750587363087,6.51102562,132.87,132.86,6.061]
[1750587363496,6.51102562,132.87,132.86,13.58771985]
[1750587365613,6.51102562,132.87,132.84,7.52785305]
[1750587365840,18.64964886,132.86,132.84,7.52785305]
[1750587366721,6.51102562,132.87,132.84,7.52785305]
[1750587366920,6.51102562,132.87,132.84,26.34748569]
[1750587367621,6.51102562,132.87,132.85,8.0617]
[1750587367996,4.84442562,132.87,132.86,0.5034]
[1750587368509,7.3,132.94,132.88,26.0]
[1750587369603,7.3,132.94,132.89,26.33757242]
[1750587371114,7.3,132.94,132.89,63.96267588]
[1750587371304,18.64964886,132.97,132.9,6.4296]
[1750587371809,10.50548653,132.98,132.91,26.0]
[1750587372446,10.50548653,132.98,132.93,26.0]
[1750587373118,10.50548653,132.98,132.94,26.32766661]
[1750587373428,82.04,133.04,132.95,6.4296]
[1750587373631,18.64964886,133.03,132.95,6.4296]
[1750587375011,26.16686729,133.03,132.96,7.52105896]
[1750587375405,24.17373378,133.03,132.96,7.52105896]
[1750587375621,18.64964886,133.03,132.96,26.32370637]
[1750587376325,146.9,133.02,132.96,26.32370637]
[1750587376926,191.54964886,133.01,132.96,7.52105896]
[1750587377130,18.64964886,132.97,132.93,7.52275633]
[1750587378731,18.64964886,132.97,132.91,18.80843215]
[1750587379426,7.3,132.98,132.91,44.80843215]
[1750587380717,7.3,132.98,132.95,26.32568634]
[1750587381534,7.3,132.98,132.95,7.52162467]
[1750587381535,18.64964886,132.97,132.95,7.52162467]
[1750587381912,18.64964886,132.97,132.93,7.52275633]
[1750587382139,165.54964886,132.97,132.93,7.52275633]
[1750587382304,146.9,132.96,132.93,7.52275633]
[1750587382834,146.9,132.96,132.91,18.80960932]
[1750587383036,8.8046,132.98,132.91,18.80960932]
[1750587383206,18.64964886,132.97,132.91,18.80960932]
[1750587386938,165.54964886,132.97,132.91,18.80960932]
[1750587387376,9.04322956,133.01,132.94,26.0]
[1750587387536,7.51842956,133.01,132.95,14.11162467]
[1750587387846,18.64964886,133.02,132.95,6.59]
[1750587388057,18.64964886,133.0,132.93,26.0]
[1750587390746,18.64964886,133.0,132.94,7.52219046]
[1750587391418,20.17924886,132.98,132.89,6.5826]
[1750587391653,18.64964886,132.96,132.91,26.0]
[1750587392018,18.64964886,132.96,132.9,26.33559066]
[1750587394113,44.64964886,132.96,132.9,26.33559066]
[1750587394316,44.64964886,132.96,132.85,43.71412368]
[1750587394317,58.17524087,132.96,132.87,18.8140521]
[1750587395119,18.64964886,132.92,132.87,18.8140521]
[1750587395337,18.64964886,132.9,132.86,7.52671985]
[1750587396413,18.64964886,132.9,132.82,26.35145308]
[1750587396642,18.64964886,132.9,132.82,52.35145308]
[1750587397627,18.64964886,132.88,132.82,7.52898659]
[1750587397828,153.3204,132.89,132.82,7.52898659]
[1750587397829,18.64964886,132.86,132.82,7.52898659]
[1750587398029,20.19524886,132.84,132.8,7.53012048]
[1750587398350,31.9,132.83,132.8,7.53012048]
[1750587398517,18.64964886,132.82,132.78,7.5312547]
[1750587398724,18.64964886,132.82,132.78,26.35939146]
[1750587400022,18.64964886,132.82,132.75,26.0]
[1750587400023,25.06044886,132.82,132.76,7.53238927]
[1750587400230,18.64964886,132.8,132.76,7.53238927]
[1750587400433,18.64964886,132.8,132.75,18.83126007]
[1750587400434,39.2,132.79,132.75,18.83126007]
[1750587402025,39.2,132.79,132.74,7.53352418]
[1750587402247,18.64964886,132.78,132.74,7.53352418]
[1750587402553,18.64964886,132.78,132.74,26.36733463]
[1750587403656,18.64964886,132.78,132.72,26.37130801]
[1750587403850,39.2,132.79,132.75,26.0]
[1750587405854,39.2,132.79,132.76,26.36336245]
[1750587407255,18.64964886,132.78,132.76,7.53238927]
[1750587407457,18.64964886,132.78,132.71,7.53522718]
[1750587407671,18.64964886,132.78,132.71,52.37199454]
[1750587407829,18.64964886,132.76,132.71,90.04813047]
[1750587408035,31.94,132.76,132.71,90.04813047]
[1750587408864,9.93874967,132.78,132.71,90.04813047]
[1750587409046,9.93874967,132.78,132.74,26.0]
[1750587409943,9.93874967,132.78,132.75,26.36534839]
[1750587410141,9.93874967,132.78,132.77,26.0]
[1750587411464,9.93874967,132.78,132.75,26.36534839]
[1750587411666,9.93874967,132.78,132.75,52.36534839]
[1750587413249,9.93874967,132.78,132.75,26.36534839]
[1750587413566,9.93874967,132.78,132.75,7.53295668]
[1750587413567,25.94964886,132.77,132.75,7.53295668]
[1750587414160,25.94964886,132.77,132.73,26.36930591]
[1750587414366,7.3,132.77,132.73,26.36930591]
[1750587416891,18.64964886,132.76,132.73,26.36930591]
[1750587417174,18.64964886,132.74,132.68,7.53693096]
[1750587417395,18.64964886,132.74,132.69,18.84068913]
[1750587417597,1.5362,132.73,132.69,18.84068913]
[1750587418172,1.5362,132.73,132.69,26.37705208]
[1750587418875,18.64964886,132.72,132.69,7.53636295]
[1750587419098,18.64964886,132.7,132.69,7.53636295]
[1750587420180,31.96,132.71,132.67,26.38124669]
[1750587420385,18.64964886,132.72,132.67,26.38124669]
[1750587420679,40.8762,132.73,132.67,26.38124669]
[1750587420680,7.3,132.73,132.7,26.0]
[1750587421202,9.74044158,132.74,132.7,26.0]
[1750587421388,9.74044158,132.74,132.67,101.75623725]
[1750587421389,9.74044158,132.74,132.73,26.0]
[1750587421977,9.74044158,132.74,132.71,26.0]
[1750587422178,9.74044158,132.74,132.72,7.53465943]
[1750587424176,9.74044158,132.74,132.68,6.5747]
[1750587424409,9.74044158,132.74,132.69,26.37727032]
[1750587424586,9.74044158,132.74,132.69,52.37727032]
[1750587425528,18.64964886,132.73,132.69,52.37727032]
[1750587425898,28.32737171,132.73,132.69,52.37727032]
[1750587426102,29.97287171,132.73,132.69,26.37727032]
[1750587426298,61.99287171,132.73,132.67,26.0]
[1750587426522,61.99287171,132.73,132.69,26.0]
[1750587426523,43.34322285,132.73,132.69,26.0]
[1750587426817,9.67772285,132.73,132.69,26.0]
[1750587428498,9.67772285,132.73,132.72,26.0]
[1750587430417,9.67772285,132.73,132.72,33.53465943]
[1750587432123,9.67772285,132.73,132.72,7.53465943]
[1750587432429,9.67772285,132.73,132.7,18.83948756]
[1750587433607,9.67772285,132.73,132.72,26.0]
[1750587434610,9.67772285,132.73,132.72,33.53465943]
[1750587438239,9.67772285,132.73,132.72,58.49810829]
[1750587438845,9.67772285,132.73,132.72,39.84845943]
[1750587440142,1e-08,132.73,132.72,68.49810829]
[1750587440439,1.5924,132.86,132.76,26.0]
[1750587440615,25.76721585,132.86,132.77,26.0]
[1750587440810,20.24204886,132.86,132.77,26.0]
[1750587441212,20.24204886,132.86,132.81,26.0]
[1750587441637,20.24204886,132.86,132.82,26.35145308]
[1750587442009,1.5924,132.86,132.82,26.35145308]
[1750587442519,20.24204886,132.86,132.82,26.35145308]
[1750587444637,18.64964886,132.85,132.75,45.19620715]
[1750587444841,20.24204886,132.86,132.75,45.19620715]
[1750587444842,18.64964886,132.83,132.75,45.19620715]
[1750587445142,18.64964886,132.83,132.78,26.0]
[1750587445639,18.64964886,132.83,132.76,26.36336245]
[1750587446140,18.64964886,132.81,132.76,26.36336245]
[1750587446328,18.64964886,132.79,132.76,26.36336245]
[1750587447530,180.4927,132.8,132.76,26.36336245]
[1750587447849,33.5927,132.8,132.76,52.36336245]
[1750587449825,18.64964886,132.79,132.76,26.36336245]
[1750587451646,18.64964886,132.79,132.74,26.36733463]
[1750587454256,33.5927,132.8,132.74,64.03495554]
[1750587457063,18.64964886,132.79,132.74,26.36733463]
[1750587458162,18.64964886,132.79,132.67,64.06874197]
[1750587458163,18.64964886,132.75,132.67,64.06874197]
[1750587458354,39.24,132.74,132.7,26.0]
[1750587458967,39.24,132.74,132.67,64.06874197]
[1750587459462,39.24,132.74,132.7,26.0]
[1750587459973,39.24,132.74,132.67,64.06874197]
[1750587460152,18.64964886,132.73,132.68,26.0]
[1750587460461,18.64964886,132.71,132.67,26.38124669]
[1750587460767,31.94,132.7,132.67,7.53749905]
[1750587461862,31.94,132.7,132.67,26.38124669]
[1750587462472,1.6646,132.72,132.7,26.0]
[1750587462786,146.9,132.73,132.7,26.0]
[1750587462991,39.24,132.74,132.7,26.0]
[1750587463290,7.3,132.74,132.7,26.0]
[1750587464478,7.3,132.74,132.71,52.37329514]
[1750587464884,7.3,132.74,132.73,26.0]
[1750587465482,31.94,132.77,132.73,26.0]
[1750587465669,31.94,132.77,132.72,26.0]
[1750587466179,31.94,132.77,132.74,26.0]
[1750587466477,31.94,132.77,132.75,7.53295668]
[1750587469994,18.64964886,132.76,132.75,7.53295668]
[1750587470678,18.64964886,132.76,132.74,18.83329656]
[1750587470679,165.54964886,132.76,132.74,18.83329656]
[1750587470872,18.64964886,132.75,132.73,7.53409176]
[1750587471568,31.94,132.74,132.73,7.53409176]
[1750587471789,50.58964886,132.74,132.73,7.53409176]
[1750587472696,50.58964886,132.74,132.71,18.83674234]
[1750587473802,25.94964886,132.73,132.7,7.53579502]
[1750587473978,1.5511,132.72,132.7,7.53579502]
[1750587474294,50.58964886,132.71,132.66,18.8451656]
[1750587474867,50.58964886,132.71,132.66,26.0]
[1750587475678,31.94,132.71,132.66,26.0]
[1750587476081,18.64964886,132.7,132.66,26.0]
[1750587477087,18.64964886,132.7,132.67,7.53749905]
[1750587477516,18.64964886,132.7,132.67,26.38124669]
[1750587479235,18.64964886,132.7,132.63,101.78692601]
[1750587479415,18.64964886,132.7,132.64,26.0]
[1750587479926,18.64964886,132.7,132.63,101.78692601]
[1750587480115,1.5511,132.72,132.63,101.78692601]
[1750587480306,50.60964886,132.71,132.64,26.0]
[1750587480842,1.5511,132.72,132.66,26.0]
[1750587481203,1.5511,132.72,132.67,64.06874197]
[1750587481722,1.5511,132.72,132.67,26.38124669]
[1750587482027,18.64964886,132.71,132.67,26.38124669]
[1750587482238,1.5511,132.72,132.67,26.38124669]
[1750587482522,33.5111,132.72,132.67,26.38124669]
[1750587482926,33.5111,132.72,132.67,64.06874197]
[1750587483802,33.5111,132.72,132.67,56.53124292]
[1750587486206,18.64964886,132.71,132.67,18.84374764]
[1750587486813,165.54964886,132.71,132.67,18.84374764]
[1750587490542,31.96,132.7,132.67,18.84374764]
[1750587490721,146.9,132.71,132.67,18.84374764]
[1750587492125,7.3,132.73,132.7,26.0]
[1750587492336,7.3,132.73,132.71,7.53522718]
[1750587493451,146.9,132.75,132.71,26.37329514]
[1750587493960,25.94964886,132.78,132.71,26.37329514]
[1750587494246,31.96,132.77,132.71,26.37329514]
[1750587494951,31.96,132.77,132.71,64.04943107]
[1750587495156,57.88964886,132.78,132.71,64.04943107]
[1750587495845,39.24,132.78,132.71,64.04943107]
[1750587497839,7.3,132.78,132.71,64.04943107]
[1750587498861,7.3,132.78,132.74,26.0]
[1750587499161,7.3,132.78,132.72,26.0]
[1750587499535,7.3,132.78,132.74,26.0]
[1750587500767,7.3,132.78,132.75,26.36534839]
[1750587504674,146.9,132.81,132.75,70.41783181]
[1750587507068,7.3,132.83,132.78,26.0]
[1750587507370,18.64964886,132.87,132.78,26.0]
[1750587507578,18.64964886,132.87,132.79,26.0]
[1750587507772,159.86377621,132.88,132.79,26.0]
[1750587507980,191.78377621,132.88,132.79,26.0]
[1750587508155,159.86377621,132.88,132.79,26.0]
[1750587508354,191.78377621,132.88,132.79,26.0]
[1750587508556,191.78377621,132.88,132.8,64.00602408]
[1750587508759,191.78377621,132.88,132.81,6.3877]
[1750587509175,191.78377621,132.88,132.82,26.0]
[1750587509391,11.42697621,132.88,132.84,26.0]
[1750587509594,7.28,132.94,132.88,26.0]
[1750587509888,1.5368,132.96,132.88,26.0]
[1750587510681,18.64964886,132.95,132.89,26.33757242]
[1750587510859,1.5368,132.96,132.89,26.33757242]
[1750587511061,178.82,132.97,132.89,26.33757242]
[1750587511686,146.9,132.97,132.89,63.96267588]
[1750587512184,18.64964886,132.96,132.89,63.96267588]
[1750587512561,18.64964886,132.96,132.89,26.33757242]
[1750587513298,18.64964886,132.94,132.89,7.52502069]
[1750587513591,18.64964886,132.92,132.89,7.52502069]
[1750587513893,18.64964886,132.9,132.86,7.52671985]
[1750587514590,146.9,132.89,132.85,7.52728641]
[1750587514807,178.8,132.89,132.85,7.52728641]
[1750587516487,178.8,132.89,132.84,18.81951027]
[1750587517795,18.64964886,132.88,132.84,18.81951027]
[1750587520188,18.64964886,132.88,132.83,7.52841978]
[1750587520687,148.4168,132.92,132.87,7.52615338]
[1750587520983,146.9,132.92,132.87,26.34153683]
[1750587521565,7.28,132.93,132.87,63.97230374]
[1750587522387,7.28,132.93,132.87,26.34153683]
[1750587522764,39.18,132.93,132.87,26.34153683]
[1750587523388,39.18,132.93,132.9,26.0]
[1750587523571,7.28,132.93,132.9,26.0]
[1750587523771,9.64591215,132.95,132.9,26.0]
[1750587524892,50.54964886,132.94,132.87,63.97230374]
[1750587525184,50.54964886,132.94,132.88,26.0]
[1750587526187,50.54964886,132.94,132.89,26.33757242]
[1750587526687,9.64591215,132.95,132.89,63.96267588]
[1750587528362,28.29556101,132.95,132.89,63.96267588]
[1750587528971,9.64591215,132.95,132.89,63.96267588]
[1750587530285,9.64591215,132.95,132.92,26.0]
[1750587530868,7.28,132.97,132.93,6.6332]
[1750587532262,7.28,132.97,132.94,26.32766661]
[1750587532466,18.64964886,133.0,132.94,26.32766661]
[1750587534191,195.74,133.01,132.95,26.0]
[1750587534389,48.84,133.01,132.96,26.32370637]
[1750587534592,8.9319,133.02,132.96,26.32370637]
[1750587534795,7.28,133.02,132.96,26.32370637]
[1750587535494,18.64964886,133.01,132.96,26.32370637]
[1750587537597,7.28,133.02,132.96,26.32370637]
[1750587538786,18.64964886,133.01,132.96,7.52105896]
[1750587539481,18.64964886,132.99,132.94,26.32754414]
[1750587539679,18.64964886,132.97,132.94,7.52219046]
[1750587540804,18.64964886,132.95,132.91,7.52388834]
[1750587540995,18.64964886,132.93,132.91,7.52388834]
[1750587541502,18.64964886,132.93,132.89,26.33647955]
[1750587542089,18.64964886,132.93,132.89,7.52502069]
[1750587542294,26.0,132.95,132.89,26.33757242]
[1750587542605,18.64964886,132.95,132.89,52.33757242]
[1750587543405,39.14,132.96,132.89,89.96267588]
[1750587546900,7.26,132.96,132.92,26.0]
[1750587547107,7.26,132.96,132.93,6.4044]
[1750587547616,7.26,132.96,132.94,7.52219046]
[1750587549609,7.26,132.96,132.93,26.32916324]
[1750587550997,146.9,132.98,132.93,63.94294492]
[1750587551315,9.08360513,132.99,132.93,63.94294492]
[1750587551316,9.08360513,132.99,132.96,26.0]
[1750587551491,7.26,133.01,132.96,32.2612]
[1750587551691,7.26,133.01,132.97,26.3217267]
[1750587552091,7.26,133.01,133.0,26.0]
[1750587552293,32.06,133.04,133.0,26.0]
[1750587552488,18.64964886,133.05,133.0,26.0]
[1750587553922,18.64964886,133.05,133.01,26.31381098]
[1750587555224,25.90964886,133.05,133.01,7.51823171]
[1750587555422,31.45784466,133.05,133.01,7.51823171]
[1750587555814,25.90964886,133.05,133.0,26.31578947]
[1750587556213,31.44992208,133.05,133.0,26.31578947]
[1750587556712,25.90964886,133.05,133.0,26.31578947]
[1750587557027,18.64964886,133.03,133.0,26.31578947]
[1750587557227,50.68964886,133.03,133.0,26.31578947]
[1750587558032,50.68964886,133.03,132.98,26.31974732]
[1750587559142,20.29454886,133.01,132.94,7.52219046]
[1750587559311,178.9,133.0,132.94,7.52219046]
[1750587559514,7.26,132.99,132.94,63.93846336]
[1750587560035,7.26,132.99,132.98,7.5199278]
[1750587562540,7.26,132.99,132.96,26.32319574]
[1750587566414,7.26,132.99,132.97,26.0]
[1750587566619,31.98,133.02,132.97,26.0]
[1750587566819,31.98,133.02,132.99,26.0]
[1750587567131,186.32,133.04,132.99,26.0]
[1750587568437,7.26,133.04,133.0,26.31578947]
[1750587569934,7.26,133.04,133.03,26.0]
[1750587570127,18.64964886,133.07,133.03,26.0]
[1750587570639,18.64964886,133.07,133.04,7.51653638]
[1750587571339,18.64964886,133.07,133.02,7.51766651]
[1750587571717,146.9,133.06,133.02,7.51766651]
[1750587571931,18.64964886,133.04,133.02,7.51766651]
[1750587572641,18.64964886,133.04,132.99,26.31759486]
[1750587574928,18.64964886,133.04,132.99,63.91440665]
[1750587576142,32.12,133.05,133.02,26.0]
[1750587576321,146.9,133.06,133.02,26.0]
[1750587576726,146.9,133.06,133.03,26.30985491]
[1750587577250,18.64964886,133.05,133.03,26.30985491]
[1750587578636,18.64964886,133.05,133.01,26.31381098]
[1750587580552,178.94,133.06,133.01,63.90496953]
[1750587580946,146.9,133.06,133.01,63.90496953]
[1750587581549,50.66964886,133.08,133.01,101.49612808]
[1750587581754,50.66964886,133.08,133.02,6.0094]
[1750587581925,7.44,133.09,133.04,26.0]
[1750587581926,26.08964886,133.09,133.04,26.0]
[1750587582127,7.44,133.09,133.05,26.30590002]
[1750587583126,18.64964886,133.08,133.05,26.30590002]
[1750587583736,18.64964886,133.08,133.05,7.51597143]
[1750587583931,18.64964886,133.08,133.03,18.79266328]
[1750587583932,18.64964886,133.08,133.03,7.5171014]
[1750587584253,1.59,133.05,132.99,7.51936235]
[1750587584435,18.64964886,133.03,132.99,7.51936235]
[1750587584633,18.64964886,133.03,132.99,26.31776824]
[1750587585552,32.0,133.04,132.99,26.31776824]
[1750587586646,18.64964886,133.04,132.99,26.31776824]
[1750587590148,31.98,133.05,132.99,63.91458003]
[1750587593167,18.64964886,133.04,132.99,26.31776824]
[1750587596235,165.54964886,133.04,132.99,7.51936235]
[1750587596458,31.88,133.03,132.99,26.31776824]
[1750587599535,18.64964886,133.07,133.01,26.31381098]
[1750587601666,186.06,133.08,133.02,26.0]
[1750587601862,186.06,133.08,133.01,63.90496953]
[1750587601863,154.18,133.08,133.04,26.0]
[1750587602633,7.28,133.08,133.04,26.0]
[1750587603060,31.88,133.11,133.04,26.0]
[1750587603768,31.88,133.11,133.05,26.30590002]
[1750587605668,18.64964886,133.11,133.05,63.88575721]
[1750587605838,18.64964886,133.11,133.06,6.2929]
[1750587607539,18.64964886,133.11,133.07,26.30194634]
[1750587608360,18.64964886,133.11,133.07,7.51484181]
[1750587608572,44.64964886,133.11,133.07,7.51484181]
[1750587609176,18.64964886,133.07,133.03,26.30983335]
[1750587609463,146.9,133.06,133.03,26.30983335]
[1750587610142,146.9,133.06,133.04,0.4035578]
[1750587610558,165.54964886,133.05,133.04,0.4035578]
[1750587612177,165.54964886,133.05,133.04,7.92009418]
[1750587612997,197.40964886,133.05,133.04,7.92009418]
[1750587621421,146.9,133.05,133.04,7.92009418]
[1750587621610,146.9,133.09,133.04,52.71143513]
[1750587621808,146.9,133.09,133.07,26.0]
[1750587622412,8.8514,133.12,133.08,26.0]
[1750587622614,7.28,133.12,133.08,26.0]
[1750587623421,7.28,133.12,133.09,26.29799383]
[1750587631226,146.9,133.14,133.09,63.86655645]
[1750587632006,146.9,133.14,133.1,6.3554]
[1750587632211,146.9,133.14,133.11,26.0]
[1750587632427,146.9,133.14,133.12,7.51201923]
[1750587633235,7.26,133.17,133.12,67.66013281]
[1750587634112,7.26,133.17,133.12,26.2920673]
[1750587634318,18.64964886,133.16,133.12,26.2920673]
[1750587634927,18.64964886,133.14,133.12,7.51201923]
[1750587637131,18.64964886,133.14,133.1,26.29470406]
[1750587638419,18.64964886,133.12,133.1,7.513148]
[1750587638627,18.64964886,133.1,133.05,7.51597143]
[1750587638823,18.64964886,133.08,133.05,7.51597143]
[1750587641533,18.64964886,133.08,133.05,26.30590002]
[1750587641842,18.64964886,133.12,133.05,52.30590002]
[1750587642022,1.5687,133.13,133.05,52.30590002]
[1750587642023,1.5687,133.13,133.08,26.0]
[1750587642625,18.64964886,133.14,133.08,26.0]
[1750587642835,18.64964886,133.14,133.08,32.104]
[1750587643031,32.14,133.15,133.09,63.86655645]
[1750587643225,17.88307038,133.16,133.09,63.86655645]
[1750587644753,18.64964886,133.15,133.09,63.86655645]
[1750587645743,17.88307038,133.16,133.09,63.86655645]
[1750587646350,16.36357038,133.16,133.09,63.86655645]
[1750587646537,7.26,133.16,133.09,63.86655645]
[1750587651645,7.26,133.16,133.12,26.0]
[1750587651838,7.26,133.16,133.13,26.29009238]
[1750587652042,1.6471,133.2,133.13,26.29009238]
[1750587652346,18.64964886,133.21,133.13,63.84736722]
[1750587652942,18.64964886,133.21,133.16,26.0]
[1750587653859,18.64964886,133.21,133.17,26.28219568]
[1750587655163,7.26,133.22,133.17,26.28219568]
[1750587655458,18.64964886,133.21,133.17,26.28219568]
[1750587658359,7.26,133.22,133.17,7.50919876]
[1750587658541,18.64964886,133.21,133.17,26.28219568]
[1750587658957,18.64964886,133.21,133.15,26.28614343]
[1750587659642,7.26,133.22,133.18,32.5418]
[1750587659841,195.64,133.25,133.18,32.5418]
[1750587660047,146.9,133.25,133.18,32.5418]
[1750587660255,7.64,133.27,133.18,32.5418]
[1750587660842,25.20384886,133.26,133.16,26.0]
[1750587661143,25.20384886,133.26,133.17,26.28219568]
[1750587661144,18.64964886,133.24,133.17,26.28219568]
[1750587661349,44.64964886,133.24,133.17,26.28219568]
[1750587662065,20.26194886,133.22,133.17,26.28219568]
[1750587662236,40.32,133.21,133.17,26.28219568]
[1750587662438,18.64964886,133.2,133.17,26.28219568]
[1750587662642,18.64964886,133.2,133.17,7.50919876]
[1750587662851,18.64964886,133.2,133.13,7.51145496]
[1750587663038,31.68952028,133.2,133.13,7.51145496]
[1750587663439,24.18198203,133.2,133.13,7.51145496]
[1750587663635,18.64964886,133.2,133.13,7.51145496]
[1750587663842,18.64964886,133.2,133.13,26.29009238]
[1750587665057,24.18770219,133.2,133.11,52.29404251]
[1750587665449,146.9,133.19,133.11,52.29404251]
[1750587665768,18.64964886,133.18,133.11,52.29404251]
[1750587667668,146.9,133.19,133.11,52.29404251]
[1750587669564,18.64964886,133.18,133.11,52.29404251]
[1750587670648,18.64964886,133.16,133.11,52.29404251]
[1750587675261,18.64964886,133.14,133.11,7.51258357]
[1750587675463,146.9,133.15,133.11,7.51258357]
[1750587675659,146.9,133.15,133.11,26.29404251]
[1750587676176,146.9,133.15,133.09,26.29799383]
[1750587676855,146.9,133.15,133.09,63.86655645]
[1750587678356,18.64964886,133.14,133.09,63.86655645]
[1750587679862,18.64964886,133.14,133.09,26.29799383]
[1750587680088,51.08964886,133.14,133.09,26.29799383]
[1750587681479,154.54,133.15,133.09,26.29799383]
[1750587681877,154.54,133.15,133.13,7.51145496]
[1750587682190,146.9,133.15,133.13,7.51145496]
[1750587686493,18.64964886,133.14,133.13,7.51145496]
[1750587686803,18.64964886,133.12,133.07,7.51484181]
[1750587687096,18.64964886,133.1,133.07,7.51484181]
[1750587687468,18.64964886,133.1,133.06,26.30382305]
[1750587688477,18.64964886,133.1,133.06,7.51540658]
[1750587688687,18.64964886,133.08,133.06,7.51540658]